{"text_format":"1","workbook":"xlsx","n_sheets":9,"sheets":["Instructivo","DEMANDA ANUAL","VOLUMEN DE QUEJAS","COSTO ADMINISTRACIÓN PÚBLICA","RESUMEN DE COSTOS AP","AUXILIAR COSTO ADMINISTRACIÓN","TIEMPO DE RESPUESTA","CANAL ATENCIÓN","RESUMEN"],"not_rendered":{"charts":0,"images":7,"macros":1,"external_links":0,"defined_names":0,"comments":0,"pivot_tables":0},"unopened":[],"bounds":{"document_bytes":16777216,"sheet_cells":100000,"rows_first":2000,"rows_last":500,"rows_between":2000,"halvings":0,"cell_chars":16384,"cell_head_chars":4096},"cells_cut":0,"cells_raw":0,"read":"whole","date_system":"1900"}

{"sheet":"Instructivo","index":0,"n_rows":70,"n_cols":1,"rows_kept":70,"cut":false,"hidden":false,"merged":[]}
["CRITERIO DE PRIORIZACIÓN DE TRÁMITES ADMINISTRATIVOS"]
["Instructivo"]
["Consideraciones generales"]
[]
["En las hojas “COSTO DE ADMINISTRACIÓN PÚBLICA”y “RESUMEN”  para añadir más trámites y que apliquen las fórmulas, se deberá seleccionar la primera fila y copiarla una por cada trámite de la entidad"]
[]
["Todas las hojas tienen columnas de color celeste, en las cuales NO deben ingresar valores ya que contienen fórmulas."]
["Para la carga en GOB.EC. La institución debe recordar que el peso máximo del archivo es de 2 MB."]
["Esquema de puntuación"]
["Para priorizar un trámite, se realizará un análisis de criterios básicos y adicionales basado en información que disponen las instituciones sujetas a esta norma técnica. Cada criterio será puntuado según los lineamientos presentes en esta norma."]
["a) Demanda Anual"]
["Considerará el volumen o frecuencia de las solicitudes que ingresan al año a cada institución para la gestión de un trámite en particular."]
["La identificación del volumen anual de los trámites se realizará a través de sus registros de transacciones y/o el número de visitas de consulta de información realizadas a través de páginas web institucionales."]
["Para realizar el registro realice lo siguiente:"]
["1.- Seleccione la hoja DEMANDA ANUAL"]
["2.- Ingrese los trámites de la institución registrando el identificador y nombre en las columnas respectivas.  "]
["3.- Para cada trámite debe especificar en la columna DEMANDA ANUAL el volumen o frecuencia anual, de acuerdo a lo mencionado anteriormente."]
["4.- Una vez terminado el llenado solicitado presione el botón PUNTUACIÓN, se ordenara de menor a mayor. "]
["5.- Usted visualizará el ordenamiento de los trámites ingresados de acuerdo al número de  volumen o frecuencia anual."]
["6.- Así mismo, usted visualizará el puntaje obtenido en la columna PUNTUACIÓN de acuerdo al grupo obtenido por cada trámite de acuerdo al número de volumen o frecuencia anual cosiderando lo siguiente: ** Primer grupo (trámites con menor demanda no incluye los trámites con demanda 0 ) = 3\n** Segundo grupo (trámites con demanda intermedia) = 6\n** Tercer grupo (trámites con mayor demanda) = 10"]
["Cada vez que requiera actualizar el puntaje presionando el botón puntuación, debe verificar que la celda de la columna puntaje se encuentren vacías, es decir, se debe borrar cualquier valor de puntaje obtenido previamente."]
["b) Volumen de quejas asociadas a un trámite: "]
["Considerará la cantidad de quejas recibidas en relación a un trámite durante un año. Estas quejas deberán estar documentadas en medios físicos y/o digitales."]
["Para determinar la puntuación, se colocará en una tabla todos los trámites con sus correspondientes quejas ordenándose de menor a mayor. Se dividirá en 2 partes en los que cada grupo contenga la misma cantidad de trámites."]
["Para realizar el registro realice lo siguiente:"]
["1.- Seleccione la hoja VOLUMEN DE QUEJAS"]
["2.- Ingrese los trámites de la institución registrando el identificador y nombre en las columnas respectivas.  Si usted requiere de acuerdo al número de trámites copie filas adicionales que estén dentro del cuadro"]
["3.- Para cada trámite debe especificar en la columna VOLUMEN QUEJAS el número de quejas anual, de acuerdo a lo mencionado anteriormente."]
["4.- Una vez terminado el llenado solicitado presione el botón PUNTUACIÓN."]
["5.- Usted visualizará el ordenamiento de los trámites ingresados de acuerdo al número de  volumen o frecuencia anual."]
["6.- Así mismo, usted visualizará el puntaje obtenido en la columna PUNTUACIÓN de acuerdo al grupo obtenido por cada trámite de acuerdo al número de volumen o frecuencia anual cosiderando lo siguiente: La puntuación se basará en los siguientes grupos:\n** Primer grupo (trámites con menor cantidad de quejas, no incluye los trámites con queja 0 ) = 4\n** Segundo grupo (trámites con mayor porcentaje de quejas) = 10"]
["El valor del volumen de quejas no debe ser superior al valor del volumen de la demana, no le permitirá registrar un valor."]
["c) Costo para la administración pública: "]
["En cada trámite, basado en un caso estándar, se deberá estimar el costo incurrido en el costo de personal y recursos necesarios para su atención desde que el administrado entregó todos los requisitos hasta que la institución entregue el producto, respuesta o servicio requerido en el trámite. Se considerará:"]
["• Costo de personal:"]
["Costo del personal para atender el trámite, se excluyen actividades realizadas automáticamente o que dependen del administrado. El tiempo deberá considerar únicamente el tiempo efectivo de trabajo del personal, no debe considerar el tiempo de espera o de movimiento."]
["• Costo de recursos:"]
["Se deberá considerar el costo directo en el que la institución debe incurrir para atender un trámite. Se debe considerar los insumos o materia prima necesaria u cualquier otro que la institución considere pertinente."]
["Para realizar el registro realice lo siguiente:"]
["1.- Seleccione la hoja COSTO ADMINISTRACIÓN PÚBLICA"]
["2.- Ingrese los trámites de la institución registrando el identificador y nombre en las columnas respectivas.  Si usted requiere de acuerdo al número de trámites copie filas adicionales que estén dentro del cuadro"]
["3.- Para calcular el tiempo de las actividades, utilizar la hoja AUXILIAR COSTO ADMINISTRACIÓN donde deberá listar todas las actividades que realiza la institución en un caso estándar y asignar el tiempo mínimo que toma cada actvidad (en horas). El tiempo total de las actividades, deberá ingresar en la correspondiente celda de la hoja COSTO ADMINISTRACIÓN PÚBLICA"]
["4.- En función de la información registrada en el paso 3, la matriz entregará el costo del personal"]
["5.- Completar la columna \"Costo recursos\", en la cual ingresará el costo directo en el que incurre la institución para entregar el trámite. En este valor se considerarán los valores correspondientes a insumos y/o materia prima mínimos que se invierten por cada trámite (no se considera mano de obra)"]
["6.- La columna \"Costo para la adm. pública\" mostrará el costto de este criterio para cada trámite"]
["7,- Para que la fórmula funcione debe arrastrar hacia abajo al último de los támites ingresados, no copiar"]
["7.- Una vez que disponga del Costo para la administración pública, presionar el botón \"GENERAR\"."]
["8. Visualizar la hoja “RESUMEN DE COSTO AP” en la que va a encontrar copiada las celdas necesarias para el ordenamiento y puntuación de las mismas al presionar el botón “PUNTUACIÓN”"]
[]
["d) Tiempo de respuesta: "]
["Considerará los tiempos que a las instituciones les toma dar respuesta a un trámite desde que reciben la solicitud del administrado hasta la finalización del mismo. Para la definición del tiempo se considerará un caso estándar."]
["Para determinar la puntuación, se colocará en una tabla todos los trámites con el tiempo de respuesta, ordenándose de menor a mayor. Se dividirá en 4 grupos, en los que cada uno contenga la misma cantidad de trámites."]
["Para realizar el registro realice lo siguiente:"]
["1.- Seleccione la hoja TIEMPO DE RESPUESTA"]
["2.- Ingrese los trámites de la institución registrando el identificador y nombre en las columnas respectivas.  Si usted requiere de acuerdo al número de trámites copie filas adicionales que estén dentro del cuadro"]
["3.- Para cada trámite debe especificar en la columna TIEMPO RESPUESTA el tiempo, de acuerdo a lo mencionado anteriormente."]
["4.- Una vez terminado el llenado solicitado presione el botón PUNTUACIÓN."]
["5.- Usted visualizará el ordenamiento de los trámites ingresados de acuerdo al número de  volumen o frecuencia anual."]
["6.- Así mismo, usted visualizará el puntaje obtenido en la columna PUNTUACIÓN de acuerdo al grupo obtenido por cada trámite de acuerdo al número de volumen o frecuencia anual cosiderando lo siguiente:  La puntuación considera lo siguiente:\n** Primer grupo (menor o igual a 40 horas laboralres) = 0\n** Segundo grupo mayor  40 horas laboralres) = 30"]
["e) Canal de atención: "]
["Considerará los canales de atención a través de los cuales el administrado puede iniciar el trámite."]
["Para realizar el registro realice lo siguiente:"]
["1.- Seleccione la hoja CANAL ATENCIÓN"]
["2.- Ingrese los trámites de la institución registrando el identificador y nombre en las columnas respectivas.  Si usted requiere de acuerdo al número de trámites copie filas adicionales que estén dentro del cuadro"]
["3.- Para cada trámite debe seleccionar el canal de atención del trámite en la columna CANAL ATENCIÓN, que pueden ser: \nEl trámite se puede completar totalmente en línea: Se considera trámite totalmente en línea cuando el administrado no requiere realizar ninguna interacción presencial con la institución = 0\nEl trámite no se puede completar totalmente en línea: Se considera este caso, cuando el trámite incluye al menos una actividad, incluido mecanismos de pago, en la que el administrado deba acudir presencialmente a la institución, para la realización de dicho trámite. Los trámites presenciales se consideran dentro de esta categoría = 10"]
["4.- De acuerdo a la selección usted obtendrá la puntuación del trámite que se visualizará en la columna PUNTUACIÓN."]
[]
["f) Resumen"]
["En esta hoja deberá consolidar todas las puntuaciones obtenidas para cada trámite en los criterios a) hasta e). Adicionalmente deberá analizar los criterios adicionales que dispone la norma técnica, para estos últimos solamente deberá seleccionar en la celda correspondiente y la matriz asignará la puntuación adicional. Los criterios que deberá considerar son:\n- NECESIDADES CIUDADANAS: Si la institución ha implementado mecanismos para identificar necesidades ciudadanas respecto al trámite, seleccionar \"SI\", caso contrario, seleccionar \"NO\"\n- SUSCEPTIBILIDAD A CORRUPCIÓN: Si la institución dispone de información documentada sobre presuntos actos de corrupción, seleccionar \"SI\", caso contrario, seleccionar \"NO\"\n- VOLUMEN DE DEVOLUCIONES: Si la institución posee documentación sobre devoluciones del trámite en una cantidad significativa, seleccionar \"SI\", caso contrario, seleccionar \"NO\"\nPara que funcione la lista depelgable debe arrastrar la lista y la puntuación hacia abajo al último de los támites ingresados, no copiar"]
["En la columna puntaje total se realizará la sumatoria de los valores de los criterios básicos y adicionales. Este valor deberá registrarse en la plataforma GOB.EC"]

{"sheet":"DEMANDA ANUAL","index":1,"n_rows":62,"n_cols":4,"rows_kept":62,"cut":false,"hidden":false,"merged":[[0,0,0,3],[1,0,1,3]]}
["PRIORIZACIÓN DE TRÁMITES ADMINISTRATIVOS"]
["DEMANDA ANUAL"]
[]
["IDENTIFICADOR","TRÁMITE","DEMANDA ANUAL","PUNTAJE"]
["IEPI-003-02-03 ","Acción de Medida de Frontera de Derecho de Autor y Derechos Conexos",0,0]
["IEPI-003-02-05 ","Acción de Observancia Negativa por abuso del Derecho de Autor y Derechos Conexos",0,0]
["IEPI-003-02-04 ","Acción de Observancia Negativa por utilización lícita de prestaciones de Derecho de Autor y Derechos Conexos",0,0]
["IEPI-003-01-04 ","Acción de Observancia Negativa por utilización lícita de prestaciones de Propiedad Industrial",0,0]
["IEPI-007-01-10 ","Actos modificatorios al registro de patentes de invención, de modelos de utilidad y diseños industriales.",0,0]
["IEPI-010-01-06 ","Aprobación de Reforma de estatutos de una Sociedad de Gestión Colectiva",0,0]
["IEPI-010-01-05","Autorización de las tarifas de las Sociedades de Gestión Colectiva.",0,0]
["IEPI-010-01-02","Concesión de la Autorización de Funcionamiento de una Sociedad de Gestión Colectiva",0,0]
["IEPI-010-01-04","Constitución y aprobación de estatutos de una Sociedad de Gestión Colectiva",0,0]
["IEPI-008-02-05","Declaratoria de denominación de origen ecuatoriana para personas naturales o jurídicas nacionales",0,0]
["IEPI-010-01-07","Mediación entre socios y las Sociedades de Gestión Colectiva",0,0]
["IEPI-008-02-03","Reconocimiento de indicaciones geográficas Denominaciones de Origen e Indicaciones de Procedencia para personas naturales o jurídicas extranjeras",0,0]
["IEPI-007-01-02","Renovación de autorización de uso de denominación de origen ecuatoriana",0,0]
["IEPI-008-01-08 ","Resolución de Esquema de Trazado de Circuitos Integrados para personas naturales y jurídicas sean nacionales o extranjeras",0,0]
["IEPI-003-01-05 ","Acción de Observancia Negativa por abuso del derecho de Propiedad Industrial",1,3]
["IEPI-003-02-01","Diligencias Preparatorias de Derecho de Autor y Derechos Conexos",1,3]
["IEPI-007-01-05 ","Resolución de concesión de licencias obligatorias sobre patentes de fármacos y de agroquímicos para personas naturales y jurídicas sean nacionales o extranjeras.",1,3]
["IEPI-007-01-09 ","Actos modificatorios al registro de Obtenciones Vegetales",2,3]
["IEPI-003-03-01","Acción de Tutela Administrativa Positiva de Derecho de Obtentor",3,3]
["IEPI-003-01-01","Diligencias Preparatorias de Propiedad Industrial",5,3]
["IEPI-008-03-03","Búsqueda de registro y solicitudes de Obtenciones Vegetales única para personas naturales o jurídicas sean nacionales o extranjeras",7,3]
["IEPI-008-02-06","Autorización de uso y explotación de denominación de origen ecuatoriana para personas naturales o jurídicas ya sean nacionales o extranjeras",8,3]
["IEPI-010-03-01","Calificación de auditores externos para el examen de auditoría externa de las Sociedades de Gestión Colectiva.",8,3]
["IEPI-008-04-10 ","Registro de títulos de programas y noticieros radiales o televisados, de diarios, revistas y otras publicaciones periódicas para personas naturales o jurídicas sean nacionales o extranjeras",11,3]
["IEPI-008-01-04","Certificación de trámites para personas naturales y jurídicas sean nacionales o extranjeras",13,3]
["IEPI-011-02-01","Recurso de Revisión de Derechos Intelectuales",18,3]
["IEPI-009-01-02","Acción de cancelación voluntaria de Derechos Intelectuales",19,3]
["IEPI-010-01-01 ","Informe de las visitas de inspección y monitoreo a petición de parte",20,3]
["IEPI-008-04-09 ","Copias certificadas de obras literarias, artísticas y musicales, audiovisuales, programas de ordenador, bases de datos, fonogramas, audiovisuales registradas para personas naturales o jurídicas ya sean nacionales o extranjeras",21,6]
["IEPI-008-04-07","Inscripción de Contratos relacionados con la transferencia y autorizaciones de los derechos patrimoniales de autor y conexos para personas naturales o jurídicas ya sean nacionales o extranjeras",27,6]
["IEPI-003-02-02","Acción de Tutela Administrativa Positiva de Derecho de Autor y Derechos Conexos",29,6]
["IEPI-008-01-07 ","Resolución de Patentes de Modelo de Utilidad para personas naturales y jurídicas sean nacionales o extranjeras",34,6]
["IEPI-003-01-03 ","Acción de Medida de Frontera de Propiedad Industrial",39,6]
["IEPI-009-02-01","Acciones de nulidad de Derechos Intelectuales",40,6]
["IEPI-008-04-08","Registro de Obras Audiovisuales único para personas naturales o jurídicas ya sean nacionales o extranjeras",49,6]
["IEPI-008-04-02 ","Registro de Fonogramas único para personas naturales o jurídicas ya sean nacionales o extranjeras",56,6]
["IEPI-008-05-01","Registro de Depósito Voluntario único de conocimientos tradicionales asociados o no a recursos genéticos para pueblos, comunidades, nacionalidades indígenas, pueblo afroecuatoriano y montubios del Ecuador.",60,6]
["IEPI-008-01-03","Aceptación de oposición a un trámite de patente de invención, patente de modelo de utilidad, registro de diseños industriales o esquema de trazados de circuitos integrados, para personas naturales y jurídicas sean nacionales o extranjeras",67,6]
["IEPI-008-03-01","Registro de Obtención Vegetal única para personas naturales o jurídicas sean nacionales o extranjeras",71,6]
["IEPI-003-01-02 ","Acción de Tutela Administrativa Positiva de Derecho de Propiedad Industrial",79,6]
["IEPI-009-01-01 ","Acciones de Cancelación por falta de uso de Derechos Intlectuales",106,6]
["IEPI-008-01-06 ","Resolución de diseños industriales para personas naturales y jurídicas sean nacionales o extranjeras",115,6]
["IEPI-011-03-01","Recurso de Reposición de Derechos Intelectuales",182,10]
["IEPI-008-02-09 ","Registro de Lemas Comerciales de Productos y Servicios único para personas naturales y jurídicas sean nacionales o extranjeras",225,10]
["IEPI-008-01-09","Elaboración de búsquedas de patentes de invención, patentes de modelos de utilidad, diseños industriales y esquemas de trazado de circuitos integrados para personas naturales y jurídicas sean nacionales o extranjeras",298,10]
["IEPI-010-01-03","Registro de documentos de las Sociedades de Gestión Colectiva",322,10]
["IEPI-011-01-01","Recurso de Apelación de Derechos Intelectuales  ",368,10]
["IEPI-008-04-01 ","Registro de Programa de Ordenador y Base de Datos único para personas naturales o jurídicas ya sean nacionales o extranjeras",394,10]
["IEPI-008-01-05","Resolución de Patentes de Invención para personas naturales y jurídicas sean nacionales o extranjeras",404,10]
["IEPI-008-04-03","Registro de Obras Artísticas y Musicales único para personas naturales o jurídicas ya sean nacionales o extranjeras",644,10]
["IEPI-008-04-05","Búsquedas de obras literarias, artísticas y musicales, audiovisuales, programas de ordenador, fonogramas y publicaciones periódicas registradas para personas naturales o jurídicas ya sean nacionales o extranjeras",1226,10]
["IEPI-008-04-04 ","Registro de Obras Literarias único para personas naturales o jurídicas ya sean nacionales o extranjeras",1270,10]
["IEPI-008-02-07 ","Resolución de Oposiciones a signos distintivos única para personas naturales y jurídicas ya sean nacionales o extranjeras",1300,10]
["IEPI-008-02-02 ","Registro de Nombres comerciales, de los rótulos o enseña y apariencias distintivas único para personas naturales y jurídicas sean nacionales o extranjeras",1896,10]
["IEPI-007-01-04 ","Modificaciones al registro de signos distintivos",4862,10]
["IEPI-007-01-01 ","Renovación de signos distintivos, nombre comercial, lema comercial, apariencias distintivas",7412,10]
["IEPI-008-02-01","Registro de Marcas de Productos y Servicios único para personas naturales y jurídicas sean nacionales o extranjeras",16503,10]
["IEPI-008-02-08 ","Solicitud de Informe de búsqueda general de signos distintivos para personas naturales o jurídicas sean nacionales o extranjeras",20006,10]

{"sheet":"VOLUMEN DE QUEJAS","index":2,"n_rows":62,"n_cols":6,"rows_kept":62,"cut":false,"hidden":false,"merged":[[0,0,0,5],[1,0,1,5]]}
["PRIORIZACIÓN DE TRÁMITES ADMINISTRATIVOS"]
["VOLUMEN DE QUEJAS"]
[]
["IDENTIFICADOR","TRÁMITE","VOLUMEN DEMANDA","VOLUMEN DE QUEJAS","PORCENTAJE","PUNTUACIÓN"]
["IEPI-003-02-03 ","Acción de Medida de Frontera de Derecho de Autor y Derechos Conexos",0,0,0,0]
["IEPI-003-02-05 ","Acción de Observancia Negativa por abuso del Derecho de Autor y Derechos Conexos",0,0,0,0]
["IEPI-003-02-04 ","Acción de Observancia Negativa por utilización lícita de prestaciones de Derecho de Autor y Derechos Conexos",0,0,0,0]
["IEPI-003-01-04 ","Acción de Observancia Negativa por utilización lícita de prestaciones de Propiedad Industrial",0,0,0,0]
["IEPI-007-01-10 ","Actos modificatorios al registro de patentes de invención, de modelos de utilidad y diseños industriales.",0,0,0,0]
["IEPI-010-01-06 ","Aprobación de Reforma de estatutos de una Sociedad de Gestión Colectiva",0,0,0,0]
["IEPI-010-01-05","Autorización de las tarifas de las Sociedades de Gestión Colectiva.",0,0,0,0]
["IEPI-010-01-02","Concesión de la Autorización de Funcionamiento de una Sociedad de Gestión Colectiva",0,0,0,0]
["IEPI-010-01-04","Constitución y aprobación de estatutos de una Sociedad de Gestión Colectiva",0,0,0,0]
["IEPI-008-02-05","Declaratoria de denominación de origen ecuatoriana para personas naturales o jurídicas nacionales",0,0,0,0]
["IEPI-010-01-07","Mediación entre socios y las Sociedades de Gestión Colectiva",0,0,0,0]
["IEPI-008-02-03","Reconocimiento de indicaciones geográficas Denominaciones de Origen e Indicaciones de Procedencia para personas naturales o jurídicas extranjeras",0,0,0,0]
["IEPI-007-01-02","Renovación de autorización de uso de denominación de origen ecuatoriana",0,0,0,0]
["IEPI-008-01-08 ","Resolución de Esquema de Trazado de Circuitos Integrados para personas naturales y jurídicas sean nacionales o extranjeras",0,0,0,0]
["IEPI-003-01-05 ","Acción de Observancia Negativa por abuso del derecho de Propiedad Industrial",1,0,0,0]
["IEPI-003-02-01","Diligencias Preparatorias de Derecho de Autor y Derechos Conexos",1,0,0,0]
["IEPI-007-01-05 ","Resolución de concesión de licencias obligatorias sobre patentes de fármacos y de agroquímicos para personas naturales y jurídicas sean nacionales o extranjeras.",1,0,0,0]
["IEPI-007-01-09 ","Actos modificatorios al registro de Obtenciones Vegetales",2,0,0,0]
["IEPI-003-03-01","Acción de Tutela Administrativa Positiva de Derecho de Obtentor",3,0,0,0]
["IEPI-003-01-01","Diligencias Preparatorias de Propiedad Industrial",5,0,0,0]
["IEPI-008-03-03","Búsqueda de registro y solicitudes de Obtenciones Vegetales única para personas naturales o jurídicas sean nacionales o extranjeras",7,0,0,0]
["IEPI-008-02-06","Autorización de uso y explotación de denominación de origen ecuatoriana para personas naturales o jurídicas ya sean nacionales o extranjeras",8,0,0,0]
["IEPI-010-03-01","Calificación de auditores externos para el examen de auditoría externa de las Sociedades de Gestión Colectiva.",8,0,0,0]
["IEPI-008-04-10 ","Registro de títulos de programas y noticieros radiales o televisados, de diarios, revistas y otras publicaciones periódicas para personas naturales o jurídicas sean nacionales o extranjeras",11,0,0,0]
["IEPI-008-01-04","Certificación de trámites para personas naturales y jurídicas sean nacionales o extranjeras",13,0,0,0]
["IEPI-011-02-01","Recurso de Revisión de Derechos Intelectuales",18,1,5.5555555555555554,10]
["IEPI-009-01-02","Acción de cancelación voluntaria de Derechos Intelectuales",19,0,0,0]
["IEPI-010-01-01 ","Informe de las visitas de inspección y monitoreo a petición de parte",20,0,0,0]
["IEPI-008-04-09 ","Copias certificadas de obras literarias, artísticas y musicales, audiovisuales, programas de ordenador, bases de datos, fonogramas, audiovisuales registradas para personas naturales o jurídicas ya sean nacionales o extranjeras",21,0,0,0]
["IEPI-008-04-07","Inscripción de Contratos relacionados con la transferencia y autorizaciones de los derechos patrimoniales de autor y conexos para personas naturales o jurídicas ya sean nacionales o extranjeras",27,1,3.7037037037037037,10]
["IEPI-003-02-02","Acción de Tutela Administrativa Positiva de Derecho de Autor y Derechos Conexos",29,0,0,0]
["IEPI-008-01-07 ","Resolución de Patentes de Modelo de Utilidad para personas naturales y jurídicas sean nacionales o extranjeras",34,0,0,0]
["IEPI-003-01-03 ","Acción de Medida de Frontera de Propiedad Industrial",39,0,0,0]
["IEPI-009-02-01","Acciones de nulidad de Derechos Intelectuales",40,0,0,0]
["IEPI-008-04-08","Registro de Obras Audiovisuales único para personas naturales o jurídicas ya sean nacionales o extranjeras",49,0,0,0]
["IEPI-008-04-02 ","Registro de Fonogramas único para personas naturales o jurídicas ya sean nacionales o extranjeras",56,0,0,0]
["IEPI-008-05-01","Registro de Depósito Voluntario único de conocimientos tradicionales asociados o no a recursos genéticos para pueblos, comunidades, nacionalidades indígenas, pueblo afroecuatoriano y montubios del Ecuador.",60,0,0,0]
["IEPI-008-01-03","Aceptación de oposición a un trámite de patente de invención, patente de modelo de utilidad, registro de diseños industriales o esquema de trazados de circuitos integrados, para personas naturales y jurídicas sean nacionales o extranjeras",67,0,0,0]
["IEPI-008-03-01","Registro de Obtención Vegetal única para personas naturales o jurídicas sean nacionales o extranjeras",71,0,0,0]
["IEPI-003-01-02 ","Acción de Tutela Administrativa Positiva de Derecho de Propiedad Industrial",79,0,0,0]
["IEPI-009-01-01 ","Acciones de Cancelación por falta de uso de Derechos Intlectuales",106,0,0,0]
["IEPI-008-01-06 ","Resolución de diseños industriales para personas naturales y jurídicas sean nacionales o extranjeras",115,0,0,0]
["IEPI-011-03-01","Recurso de Reposición de Derechos Intelectuales",182,0,0,0]
["IEPI-008-02-09 ","Registro de Lemas Comerciales de Productos y Servicios único para personas naturales y jurídicas sean nacionales o extranjeras",225,0,0,0]
["IEPI-008-01-09","Elaboración de búsquedas de patentes de invención, patentes de modelos de utilidad, diseños industriales y esquemas de trazado de circuitos integrados para personas naturales y jurídicas sean nacionales o extranjeras",298,0,0,0]
["IEPI-010-01-03","Registro de documentos de las Sociedades de Gestión Colectiva",322,0,0,0]
["IEPI-011-01-01","Recurso de Apelación de Derechos Intelectuales  ",368,0,0,0]
["IEPI-008-04-01 ","Registro de Programa de Ordenador y Base de Datos único para personas naturales o jurídicas ya sean nacionales o extranjeras",394,0,0,0]
["IEPI-008-01-05","Resolución de Patentes de Invención para personas naturales y jurídicas sean nacionales o extranjeras",404,0,0,0]
["IEPI-008-04-03","Registro de Obras Artísticas y Musicales único para personas naturales o jurídicas ya sean nacionales o extranjeras",644,0,0,0]
["IEPI-008-04-05","Búsquedas de obras literarias, artísticas y musicales, audiovisuales, programas de ordenador, fonogramas y publicaciones periódicas registradas para personas naturales o jurídicas ya sean nacionales o extranjeras",1226,2,0.16313213703099511,4]
["IEPI-008-04-04 ","Registro de Obras Literarias único para personas naturales o jurídicas ya sean nacionales o extranjeras",1270,0,0,0]
["IEPI-008-02-07 ","Resolución de Oposiciones a signos distintivos única para personas naturales y jurídicas ya sean nacionales o extranjeras",1300,0,0,0]
["IEPI-008-02-02 ","Registro de Nombres comerciales, de los rótulos o enseña y apariencias distintivas único para personas naturales y jurídicas sean nacionales o extranjeras",1896,0,0,0]
["IEPI-007-01-04 ","Modificaciones al registro de signos distintivos",4862,0,0,0]
["IEPI-007-01-01 ","Renovación de signos distintivos, nombre comercial, lema comercial, apariencias distintivas",7412,0,0,0]
["IEPI-008-02-01","Registro de Marcas de Productos y Servicios único para personas naturales y jurídicas sean nacionales o extranjeras",16503,5,3.0297521662727988E-2,4]
["IEPI-008-02-08 ","Solicitud de Informe de búsqueda general de signos distintivos para personas naturales o jurídicas sean nacionales o extranjeras",20006,10,4.9985004498650405E-2,4]

{"sheet":"COSTO ADMINISTRACIÓN PÚBLICA","index":3,"n_rows":63,"n_cols":9,"rows_kept":63,"cut":false,"hidden":false,"merged":[[0,0,0,5],[1,0,1,5],[3,0,4,0],[3,1,4,1],[3,2,3,4],[3,5,4,5]]}
["PRIORIZACIÓN DE TRÁMITES ADMINISTRATIVOS"]
["COSTOS PARA LA ADMINISTRACIÓN PÚBLICA"]
[]
["IDENTIFICADOR","TRÁMITE","INSUMOS PARA COSTO",null,null,"COSTO PARA LA ADM. PÚBLICA",null,"SBU",400]
[null,null,"TIEMPO (HORAS)","COSTO PERSONAL","COSTO RECURSOS"]
["IEPI-003-02-03 ","Acción de Medida de Frontera de Derecho de Autor y Derechos Conexos",0,0,607.14,{"$f":"D6+E6","v":607.14}]
["IEPI-003-02-05 ","Acción de Observancia Negativa por abuso del Derecho de Autor y Derechos Conexos",{"$f":"8*20*8","v":1280},{"$f":"C7*$I$4/160","v":3200},607.14,{"$f":"D7+E7","v":3807.14}]
["IEPI-003-02-04 ","Acción de Observancia Negativa por utilización lícita de prestaciones de Derecho de Autor y Derechos Conexos",1280,3200,607.14,3807.14]
["IEPI-003-01-04 ","Acción de Observancia Negativa por utilización lícita de prestaciones de Propiedad Industrial",{"$f":"5*20*8","v":800},{"$f":"C9*$I$4/160","v":2000},607.14,2607.14]
["IEPI-007-01-10 ","Actos modificatorios al registro de patentes de invención, de modelos de utilidad y diseños industriales.",640,1600,607.14,2207.14]
["IEPI-010-01-06 ","Aprobación de Reforma de estatutos de una Sociedad de Gestión Colectiva",960,2400,607.14,3007.14]
["IEPI-010-01-05","Autorización de las tarifas de las Sociedades de Gestión Colectiva.",960,2400,607.14,3007.14]
["IEPI-010-01-02","Concesión de la Autorización de Funcionamiento de una Sociedad de Gestión Colectiva",960,2400,607.14,3007.14]
["IEPI-010-01-04","Constitución y aprobación de estatutos de una Sociedad de Gestión Colectiva",{"$f":"6*20*8","v":960},{"$f":"C14*$I$4/160","v":2400},607.14,3007.14]
["IEPI-008-02-05","Declaratoria de denominación de origen ecuatoriana para personas naturales o jurídicas nacionales",{"$f":"12*20*8","v":1920},4800,607.14,5407.14]
["IEPI-010-01-07","Mediación entre socios y las Sociedades de Gestión Colectiva",{"$f":"2*20*8","v":320},800,607.14,1407.1399999999999]
["IEPI-008-02-03","Reconocimiento de indicaciones geográficas Denominaciones de Origen e Indicaciones de Procedencia para personas naturales o jurídicas extranjeras",1920,4800,607.14,5407.14]
["IEPI-007-01-02","Renovación de autorización de uso de denominación de origen ecuatoriana",640,1600,607.14,2207.14]
["IEPI-008-01-08 ","Resolución de Esquema de Trazado de Circuitos Integrados para personas naturales y jurídicas sean nacionales o extranjeras",1280,3200,607.14,3807.14]
["IEPI-003-01-05 ","Acción de Observancia Negativa por abuso del derecho de Propiedad Industrial",800,2000,607.14,2607.14]
["IEPI-003-02-01","Diligencias Preparatorias de Derecho de Autor y Derechos Conexos",480,1200,607.14,1807.1399999999999]
["IEPI-007-01-05 ","Resolución de concesión de licencias obligatorias sobre patentes de fármacos y de agroquímicos para personas naturales y jurídicas sean nacionales o extranjeras.",960,2400,607.14,3007.14]
["IEPI-007-01-09 ","Actos modificatorios al registro de Obtenciones Vegetales",24,60,607.14,667.14]
["IEPI-003-03-01","Acción de Tutela Administrativa Positiva de Derecho de Obtentor",320,800,607.14,1407.1399999999999]
["IEPI-003-01-01","Diligencias Preparatorias de Propiedad Industrial",480,1200,607.14,1807.1399999999999]
["IEPI-008-03-03","Búsqueda de registro y solicitudes de Obtenciones Vegetales única para personas naturales o jurídicas sean nacionales o extranjeras",24,60,607.14,667.14]
["IEPI-008-02-06","Autorización de uso y explotación de denominación de origen ecuatoriana para personas naturales o jurídicas ya sean nacionales o extranjeras",1440,3600,607.14,4207.1400000000003]
["IEPI-010-03-01","Calificación de auditores externos para el examen de auditoría externa de las Sociedades de Gestión Colectiva.",{"$f":"3*20*8","v":480},{"$f":"C28*$I$4/160","v":1200},607.14,1807.1399999999999]
["IEPI-008-04-10 ","Registro de títulos de programas y noticieros radiales o televisados, de diarios, revistas y otras publicaciones periódicas para personas naturales o jurídicas sean nacionales o extranjeras",8,20,607.14,627.14]
["IEPI-008-01-04","Certificación de trámites para personas naturales y jurídicas sean nacionales o extranjeras",8,20,607.14,627.14]
["IEPI-011-02-01","Recurso de Revisión de Derechos Intelectuales",1600,4000,607.14,4607.1400000000003]
["IEPI-009-01-02","Acción de cancelación voluntaria de Derechos Intelectuales",960,2400,607.14,3007.14]
["IEPI-010-01-01 ","Informe de las visitas de inspección y monitoreo a petición de parte",960,2400,607.14,3007.14]
["IEPI-008-04-09 ","Copias certificadas de obras literarias, artísticas y musicales, audiovisuales, programas de ordenador, bases de datos, fonogramas, audiovisuales registradas para personas naturales o jurídicas ya sean nacionales o extranjeras",16,40,607.14,647.14]
["IEPI-008-04-07","Inscripción de Contratos relacionados con la transferencia y autorizaciones de los derechos patrimoniales de autor y conexos para personas naturales o jurídicas ya sean nacionales o extranjeras",16,40,607.14,647.14]
["IEPI-003-02-02","Acción de Tutela Administrativa Positiva de Derecho de Autor y Derechos Conexos",1280,3200,607.14,3807.14]
["IEPI-008-01-07 ","Resolución de Patentes de Modelo de Utilidad para personas naturales y jurídicas sean nacionales o extranjeras",5760,14400,607.14,15007.14]
["IEPI-003-01-03 ","Acción de Medida de Frontera de Propiedad Industrial",0,{"$f":"C38*$I$4/160","v":0},607.14,607.14]
["IEPI-009-02-01","Acciones de nulidad de Derechos Intelectuales",1600,4000,607.14,4607.1400000000003]
["IEPI-008-04-08","Registro de Obras Audiovisuales único para personas naturales o jurídicas ya sean nacionales o extranjeras",8,20,607.14,627.14]
["IEPI-008-04-02 ","Registro de Fonogramas único para personas naturales o jurídicas ya sean nacionales o extranjeras",8,{"$f":"C41*$I$4/160","v":20},607.14,627.14]
["IEPI-008-05-01","Registro de Depósito Voluntario único de conocimientos tradicionales asociados o no a recursos genéticos para pueblos, comunidades, nacionalidades indígenas, pueblo afroecuatoriano y montubios del Ecuador.",240,600,607.14,1207.1399999999999]
["IEPI-008-01-03","Aceptación de oposición a un trámite de patente de invención, patente de modelo de utilidad, registro de diseños industriales o esquema de trazados de circuitos integrados, para personas naturales y jurídicas sean nacionales o extranjeras",640,1600,607.14,2207.14]
["IEPI-008-03-01","Registro de Obtención Vegetal única para personas naturales o jurídicas sean nacionales o extranjeras",2880,7200,607.14,7807.14]
["IEPI-003-01-02 ","Acción de Tutela Administrativa Positiva de Derecho de Propiedad Industrial",800,2000,607.14,2607.14]
["IEPI-009-01-01 ","Acciones de Cancelación por falta de uso de Derechos Intlectuales",960,2400,607.14,3007.14]
["IEPI-008-01-06 ","Resolución de diseños industriales para personas naturales y jurídicas sean nacionales o extranjeras",1280,3200,607.14,3807.14]
["IEPI-011-03-01","Recurso de Reposición de Derechos Intelectuales",{"$f":"6*20*8","v":960},{"$f":"C48*$I$4/160","v":2400},607.14,3007.14]
["IEPI-008-02-09 ","Registro de Lemas Comerciales de Productos y Servicios único para personas naturales y jurídicas sean nacionales o extranjeras",1120,2800,607.14,3407.14]
["IEPI-008-01-09","Elaboración de búsquedas de patentes de invención, patentes de modelos de utilidad, diseños industriales y esquemas de trazado de circuitos integrados para personas naturales y jurídicas sean nacionales o extranjeras",80,200,607.14,807.14]
["IEPI-010-01-03","Registro de documentos de las Sociedades de Gestión Colectiva",16,40,607.14,647.14]
["IEPI-011-01-01","Recurso de Apelación de Derechos Intelectuales  ",640,1600,607.14,2207.14]
["IEPI-008-04-01 ","Registro de Programa de Ordenador y Base de Datos único para personas naturales o jurídicas ya sean nacionales o extranjeras",8,20,607.14,627.14]
["IEPI-008-01-05","Resolución de Patentes de Invención para personas naturales y jurídicas sean nacionales o extranjeras",9600,24000,607.14,24607.14]
["IEPI-008-04-03","Registro de Obras Artísticas y Musicales único para personas naturales o jurídicas ya sean nacionales o extranjeras",8,20,607.14,627.14]
["IEPI-008-04-05","Búsquedas de obras literarias, artísticas y musicales, audiovisuales, programas de ordenador, fonogramas y publicaciones periódicas registradas para personas naturales o jurídicas ya sean nacionales o extranjeras",8,20,607.14,627.14]
["IEPI-008-04-04 ","Registro de Obras Literarias único para personas naturales o jurídicas ya sean nacionales o extranjeras",8,20,607.14,627.14]
["IEPI-008-02-07 ","Resolución de Oposiciones a signos distintivos única para personas naturales y jurídicas ya sean nacionales o extranjeras",960,2400,607.14,3007.14]
["IEPI-008-02-02 ","Registro de Nombres comerciales, de los rótulos o enseña y apariencias distintivas único para personas naturales y jurídicas sean nacionales o extranjeras",1120,2800,607.14,3407.14]
["IEPI-007-01-04 ","Modificaciones al registro de signos distintivos",640,1600,607.14,2207.14]
["IEPI-007-01-01 ","Renovación de signos distintivos, nombre comercial, lema comercial, apariencias distintivas",640,1600,607.14,2207.14]
["IEPI-008-02-01","Registro de Marcas de Productos y Servicios único para personas naturales y jurídicas sean nacionales o extranjeras",1120,2800,607.14,3407.14]
["IEPI-008-02-08 ","Solicitud de Informe de búsqueda general de signos distintivos para personas naturales o jurídicas sean nacionales o extranjeras",0.5,1.25,607.14,608.39]

{"sheet":"RESUMEN DE COSTOS AP","index":4,"n_rows":62,"n_cols":4,"rows_kept":62,"cut":false,"hidden":false,"merged":[[0,0,0,5],[1,0,1,5]]}
["PRIORIZACIÓN DE TRÁMITES ADMINISTRATIVOS"]
["COSTOS PARA LA ADMINISTRACIÓN PÚBLICA"]
[]
["IDENTIFICADOR","TRÁMITE","COSTO PARA LA ADM. PÚBLICA","PUNTUACIÓN"]
["IEPI-003-02-03 ","Acción de Medida de Frontera de Derecho de Autor y Derechos Conexos",607.14,5]
["IEPI-003-01-03 ","Acción de Medida de Frontera de Propiedad Industrial",607.14,5]
["IEPI-008-02-08 ","Solicitud de Informe de búsqueda general de signos distintivos para personas naturales o jurídicas sean nacionales o extranjeras",608.39,5]
["IEPI-008-04-05","Búsquedas de obras literarias, artísticas y musicales, audiovisuales, programas de ordenador, fonogramas y publicaciones periódicas registradas para personas naturales o jurídicas ya sean nacionales o extranjeras",627.14,5]
["IEPI-008-01-04","Certificación de trámites para personas naturales y jurídicas sean nacionales o extranjeras",627.14,5]
["IEPI-008-04-02 ","Registro de Fonogramas único para personas naturales o jurídicas ya sean nacionales o extranjeras",627.14,5]
["IEPI-008-04-03","Registro de Obras Artísticas y Musicales único para personas naturales o jurídicas ya sean nacionales o extranjeras",627.14,5]
["IEPI-008-04-08","Registro de Obras Audiovisuales único para personas naturales o jurídicas ya sean nacionales o extranjeras",627.14,5]
["IEPI-008-04-04 ","Registro de Obras Literarias único para personas naturales o jurídicas ya sean nacionales o extranjeras",627.14,5]
["IEPI-008-04-01 ","Registro de Programa de Ordenador y Base de Datos único para personas naturales o jurídicas ya sean nacionales o extranjeras",627.14,5]
["IEPI-008-04-10 ","Registro de títulos de programas y noticieros radiales o televisados, de diarios, revistas y otras publicaciones periódicas para personas naturales o jurídicas sean nacionales o extranjeras",627.14,5]
["IEPI-008-04-09 ","Copias certificadas de obras literarias, artísticas y musicales, audiovisuales, programas de ordenador, bases de datos, fonogramas, audiovisuales registradas para personas naturales o jurídicas ya sean nacionales o extranjeras",647.14,5]
["IEPI-008-04-07","Inscripción de Contratos relacionados con la transferencia y autorizaciones de los derechos patrimoniales de autor y conexos para personas naturales o jurídicas ya sean nacionales o extranjeras",647.14,5]
["IEPI-010-01-03","Registro de documentos de las Sociedades de Gestión Colectiva",647.14,5]
["IEPI-007-01-09 ","Actos modificatorios al registro de Obtenciones Vegetales",667.14,5]
["IEPI-008-03-03","Búsqueda de registro y solicitudes de Obtenciones Vegetales única para personas naturales o jurídicas sean nacionales o extranjeras",667.14,5]
["IEPI-008-01-09","Elaboración de búsquedas de patentes de invención, patentes de modelos de utilidad, diseños industriales y esquemas de trazado de circuitos integrados para personas naturales y jurídicas sean nacionales o extranjeras",807.14,5]
["IEPI-008-05-01","Registro de Depósito Voluntario único de conocimientos tradicionales asociados o no a recursos genéticos para pueblos, comunidades, nacionalidades indígenas, pueblo afroecuatoriano y montubios del Ecuador.",1207.1399999999999,5]
["IEPI-003-03-01","Acción de Tutela Administrativa Positiva de Derecho de Obtentor",1407.1399999999999,5]
["IEPI-010-01-07","Mediación entre socios y las Sociedades de Gestión Colectiva",1407.1399999999999,5]
["IEPI-010-03-01","Calificación de auditores externos para el examen de auditoría externa de las Sociedades de Gestión Colectiva.",1807.1399999999999,10]
["IEPI-003-02-01","Diligencias Preparatorias de Derecho de Autor y Derechos Conexos",1807.1399999999999,10]
["IEPI-003-01-01","Diligencias Preparatorias de Propiedad Industrial",1807.1399999999999,10]
["IEPI-008-01-03","Aceptación de oposición a un trámite de patente de invención, patente de modelo de utilidad, registro de diseños industriales o esquema de trazados de circuitos integrados, para personas naturales y jurídicas sean nacionales o extranjeras",2207.14,10]
["IEPI-007-01-10 ","Actos modificatorios al registro de patentes de invención, de modelos de utilidad y diseños industriales.",2207.14,10]
["IEPI-007-01-04 ","Modificaciones al registro de signos distintivos",2207.14,10]
["IEPI-011-01-01","Recurso de Apelación de Derechos Intelectuales  ",2207.14,10]
["IEPI-007-01-02","Renovación de autorización de uso de denominación de origen ecuatoriana",2207.14,10]
["IEPI-007-01-01 ","Renovación de signos distintivos, nombre comercial, lema comercial, apariencias distintivas",2207.14,10]
["IEPI-003-01-05 ","Acción de Observancia Negativa por abuso del derecho de Propiedad Industrial",2607.14,10]
["IEPI-003-01-04 ","Acción de Observancia Negativa por utilización lícita de prestaciones de Propiedad Industrial",2607.14,10]
["IEPI-003-01-02 ","Acción de Tutela Administrativa Positiva de Derecho de Propiedad Industrial",2607.14,10]
["IEPI-009-01-02","Acción de cancelación voluntaria de Derechos Intelectuales",3007.14,10]
["IEPI-009-01-01 ","Acciones de Cancelación por falta de uso de Derechos Intlectuales",3007.14,10]
["IEPI-010-01-06 ","Aprobación de Reforma de estatutos de una Sociedad de Gestión Colectiva",3007.14,10]
["IEPI-010-01-05","Autorización de las tarifas de las Sociedades de Gestión Colectiva.",3007.14,10]
["IEPI-010-01-02","Concesión de la Autorización de Funcionamiento de una Sociedad de Gestión Colectiva",3007.14,10]
["IEPI-010-01-04","Constitución y aprobación de estatutos de una Sociedad de Gestión Colectiva",3007.14,10]
["IEPI-010-01-01 ","Informe de las visitas de inspección y monitoreo a petición de parte",3007.14,10]
["IEPI-011-03-01","Recurso de Reposición de Derechos Intelectuales",3007.14,10]
["IEPI-007-01-05 ","Resolución de concesión de licencias obligatorias sobre patentes de fármacos y de agroquímicos para personas naturales y jurídicas sean nacionales o extranjeras.",3007.14,10]
["IEPI-008-02-07 ","Resolución de Oposiciones a signos distintivos única para personas naturales y jurídicas ya sean nacionales o extranjeras",3007.14,10]
["IEPI-008-02-09 ","Registro de Lemas Comerciales de Productos y Servicios único para personas naturales y jurídicas sean nacionales o extranjeras",3407.14,20]
["IEPI-008-02-01","Registro de Marcas de Productos y Servicios único para personas naturales y jurídicas sean nacionales o extranjeras",3407.14,20]
["IEPI-008-02-02 ","Registro de Nombres comerciales, de los rótulos o enseña y apariencias distintivas único para personas naturales y jurídicas sean nacionales o extranjeras",3407.14,20]
["IEPI-003-02-05 ","Acción de Observancia Negativa por abuso del Derecho de Autor y Derechos Conexos",3807.14,20]
["IEPI-003-02-04 ","Acción de Observancia Negativa por utilización lícita de prestaciones de Derecho de Autor y Derechos Conexos",3807.14,20]
["IEPI-003-02-02","Acción de Tutela Administrativa Positiva de Derecho de Autor y Derechos Conexos",3807.14,20]
["IEPI-008-01-06 ","Resolución de diseños industriales para personas naturales y jurídicas sean nacionales o extranjeras",3807.14,20]
["IEPI-008-01-08 ","Resolución de Esquema de Trazado de Circuitos Integrados para personas naturales y jurídicas sean nacionales o extranjeras",3807.14,20]
["IEPI-008-02-06","Autorización de uso y explotación de denominación de origen ecuatoriana para personas naturales o jurídicas ya sean nacionales o extranjeras",4207.1400000000003,20]
["IEPI-009-02-01","Acciones de nulidad de Derechos Intelectuales",4607.1400000000003,20]
["IEPI-011-02-01","Recurso de Revisión de Derechos Intelectuales",4607.1400000000003,20]
["IEPI-008-02-05","Declaratoria de denominación de origen ecuatoriana para personas naturales o jurídicas nacionales",5407.14,20]
["IEPI-008-02-03","Reconocimiento de indicaciones geográficas Denominaciones de Origen e Indicaciones de Procedencia para personas naturales o jurídicas extranjeras",5407.14,20]
["IEPI-008-03-01","Registro de Obtención Vegetal única para personas naturales o jurídicas sean nacionales o extranjeras",7807.14,20]
["IEPI-008-01-07 ","Resolución de Patentes de Modelo de Utilidad para personas naturales y jurídicas sean nacionales o extranjeras",15007.14,20]
["IEPI-008-01-05","Resolución de Patentes de Invención para personas naturales y jurídicas sean nacionales o extranjeras",24607.14,20]

{"sheet":"AUXILIAR COSTO ADMINISTRACIÓN","index":5,"n_rows":20,"n_cols":3,"rows_kept":20,"cut":false,"hidden":false,"merged":[[1,1,1,2]]}
[]
["TRÁMITE:"]
["NO.","ACTIVIDAD","TIEMPO (HORAS)"]
[1]
[2]
[3]
[4]
[5]
[6]
[7]
[8]
[9]
[10]
[11]
[12]
[13]
[14]
[15]
[]
[null,"SUMATORIA ACTIVIDADES",{"$f":"SUM(C4:C19)","v":0}]

{"sheet":"TIEMPO DE RESPUESTA","index":6,"n_rows":62,"n_cols":4,"rows_kept":62,"cut":false,"hidden":false,"merged":[[0,0,0,3],[1,0,1,3]]}
["PRIORIZACIÓN DE TRÁMITES ADMINISTRATIVOS"]
["TIEMPO DE RESPUESTA"]
[]
["IDENTIFICADOR","TRÁMITE","TIEMPO RESPUESTA (horas laborables)","PUNTUACIÓN"]
["IEPI-003-02-03 ","Acción de Medida de Frontera de Derecho de Autor y Derechos Conexos",0,0]
["IEPI-003-02-05 ","Acción de Observancia Negativa por abuso del Derecho de Autor y Derechos Conexos",1280,30]
["IEPI-003-02-04 ","Acción de Observancia Negativa por utilización lícita de prestaciones de Derecho de Autor y Derechos Conexos",1280,30]
["IEPI-003-01-04 ","Acción de Observancia Negativa por utilización lícita de prestaciones de Propiedad Industrial",800,30]
["IEPI-007-01-10 ","Actos modificatorios al registro de patentes de invención, de modelos de utilidad y diseños industriales.",640,30]
["IEPI-010-01-06 ","Aprobación de Reforma de estatutos de una Sociedad de Gestión Colectiva",960,30]
["IEPI-010-01-05","Autorización de las tarifas de las Sociedades de Gestión Colectiva.",960,30]
["IEPI-010-01-02","Concesión de la Autorización de Funcionamiento de una Sociedad de Gestión Colectiva",960,30]
["IEPI-010-01-04","Constitución y aprobación de estatutos de una Sociedad de Gestión Colectiva",960,30]
["IEPI-008-02-05","Declaratoria de denominación de origen ecuatoriana para personas naturales o jurídicas nacionales",1920,30]
["IEPI-010-01-07","Mediación entre socios y las Sociedades de Gestión Colectiva",320,30]
["IEPI-008-02-03","Reconocimiento de indicaciones geográficas Denominaciones de Origen e Indicaciones de Procedencia para personas naturales o jurídicas extranjeras",1920,30]
["IEPI-007-01-02","Renovación de autorización de uso de denominación de origen ecuatoriana",640,30]
["IEPI-008-01-08 ","Resolución de Esquema de Trazado de Circuitos Integrados para personas naturales y jurídicas sean nacionales o extranjeras",1280,30]
["IEPI-003-01-05 ","Acción de Observancia Negativa por abuso del derecho de Propiedad Industrial",800,30]
["IEPI-003-02-01","Diligencias Preparatorias de Derecho de Autor y Derechos Conexos",480,30]
["IEPI-007-01-05 ","Resolución de concesión de licencias obligatorias sobre patentes de fármacos y de agroquímicos para personas naturales y jurídicas sean nacionales o extranjeras.",960,30]
["IEPI-007-01-09 ","Actos modificatorios al registro de Obtenciones Vegetales",24,0]
["IEPI-003-03-01","Acción de Tutela Administrativa Positiva de Derecho de Obtentor",320,30]
["IEPI-003-01-01","Diligencias Preparatorias de Propiedad Industrial",480,30]
["IEPI-008-03-03","Búsqueda de registro y solicitudes de Obtenciones Vegetales única para personas naturales o jurídicas sean nacionales o extranjeras",24,0]
["IEPI-008-02-06","Autorización de uso y explotación de denominación de origen ecuatoriana para personas naturales o jurídicas ya sean nacionales o extranjeras",1440,30]
["IEPI-010-03-01","Calificación de auditores externos para el examen de auditoría externa de las Sociedades de Gestión Colectiva.",480,30]
["IEPI-008-04-10 ","Registro de títulos de programas y noticieros radiales o televisados, de diarios, revistas y otras publicaciones periódicas para personas naturales o jurídicas sean nacionales o extranjeras",8,0]
["IEPI-008-01-04","Certificación de trámites para personas naturales y jurídicas sean nacionales o extranjeras",8,0]
["IEPI-011-02-01","Recurso de Revisión de Derechos Intelectuales",1600,30]
["IEPI-009-01-02","Acción de cancelación voluntaria de Derechos Intelectuales",960,30]
["IEPI-010-01-01 ","Informe de las visitas de inspección y monitoreo a petición de parte",960,30]
["IEPI-008-04-09 ","Copias certificadas de obras literarias, artísticas y musicales, audiovisuales, programas de ordenador, bases de datos, fonogramas, audiovisuales registradas para personas naturales o jurídicas ya sean nacionales o extranjeras",16,0]
["IEPI-008-04-07","Inscripción de Contratos relacionados con la transferencia y autorizaciones de los derechos patrimoniales de autor y conexos para personas naturales o jurídicas ya sean nacionales o extranjeras",16,0]
["IEPI-003-02-02","Acción de Tutela Administrativa Positiva de Derecho de Autor y Derechos Conexos",1280,30]
["IEPI-008-01-07 ","Resolución de Patentes de Modelo de Utilidad para personas naturales y jurídicas sean nacionales o extranjeras",5760,30]
["IEPI-003-01-03 ","Acción de Medida de Frontera de Propiedad Industrial",0,0]
["IEPI-009-02-01","Acciones de nulidad de Derechos Intelectuales",1600,30]
["IEPI-008-04-08","Registro de Obras Audiovisuales único para personas naturales o jurídicas ya sean nacionales o extranjeras",8,0]
["IEPI-008-04-02 ","Registro de Fonogramas único para personas naturales o jurídicas ya sean nacionales o extranjeras",8,0]
["IEPI-008-05-01","Registro de Depósito Voluntario único de conocimientos tradicionales asociados o no a recursos genéticos para pueblos, comunidades, nacionalidades indígenas, pueblo afroecuatoriano y montubios del Ecuador.",240,30]
["IEPI-008-01-03","Aceptación de oposición a un trámite de patente de invención, patente de modelo de utilidad, registro de diseños industriales o esquema de trazados de circuitos integrados, para personas naturales y jurídicas sean nacionales o extranjeras",640,30]
["IEPI-008-03-01","Registro de Obtención Vegetal única para personas naturales o jurídicas sean nacionales o extranjeras",2880,30]
["IEPI-003-01-02 ","Acción de Tutela Administrativa Positiva de Derecho de Propiedad Industrial",800,30]
["IEPI-009-01-01 ","Acciones de Cancelación por falta de uso de Derechos Intlectuales",960,30]
["IEPI-008-01-06 ","Resolución de diseños industriales para personas naturales y jurídicas sean nacionales o extranjeras",1280,30]
["IEPI-011-03-01","Recurso de Reposición de Derechos Intelectuales",960,30]
["IEPI-008-02-09 ","Registro de Lemas Comerciales de Productos y Servicios único para personas naturales y jurídicas sean nacionales o extranjeras",1120,30]
["IEPI-008-01-09","Elaboración de búsquedas de patentes de invención, patentes de modelos de utilidad, diseños industriales y esquemas de trazado de circuitos integrados para personas naturales y jurídicas sean nacionales o extranjeras",80,30]
["IEPI-010-01-03","Registro de documentos de las Sociedades de Gestión Colectiva",16,0]
["IEPI-011-01-01","Recurso de Apelación de Derechos Intelectuales  ",640,30]
["IEPI-008-04-01 ","Registro de Programa de Ordenador y Base de Datos único para personas naturales o jurídicas ya sean nacionales o extranjeras",8,0]
["IEPI-008-01-05","Resolución de Patentes de Invención para personas naturales y jurídicas sean nacionales o extranjeras",9600,30]
["IEPI-008-04-03","Registro de Obras Artísticas y Musicales único para personas naturales o jurídicas ya sean nacionales o extranjeras",8,0]
["IEPI-008-04-05","Búsquedas de obras literarias, artísticas y musicales, audiovisuales, programas de ordenador, fonogramas y publicaciones periódicas registradas para personas naturales o jurídicas ya sean nacionales o extranjeras",8,0]
["IEPI-008-04-04 ","Registro de Obras Literarias único para personas naturales o jurídicas ya sean nacionales o extranjeras",8,0]
["IEPI-008-02-07 ","Resolución de Oposiciones a signos distintivos única para personas naturales y jurídicas ya sean nacionales o extranjeras",960,30]
["IEPI-008-02-02 ","Registro de Nombres comerciales, de los rótulos o enseña y apariencias distintivas único para personas naturales y jurídicas sean nacionales o extranjeras",1120,30]
["IEPI-007-01-04 ","Modificaciones al registro de signos distintivos",640,30]
["IEPI-007-01-01 ","Renovación de signos distintivos, nombre comercial, lema comercial, apariencias distintivas",640,30]
["IEPI-008-02-01","Registro de Marcas de Productos y Servicios único para personas naturales y jurídicas sean nacionales o extranjeras",1120,30]
["IEPI-008-02-08 ","Solicitud de Informe de búsqueda general de signos distintivos para personas naturales o jurídicas sean nacionales o extranjeras",0.5,0]

{"sheet":"CANAL ATENCIÓN","index":7,"n_rows":62,"n_cols":12,"rows_kept":62,"cut":false,"hidden":false,"merged":[[0,0,0,3],[1,0,1,3]]}
["PRIORIZACIÓN DE TRÁMITES ADMINISTRATIVOS"]
["CANAL DE ATENCIÓN"]
[null,null,null,null,null,null,null,null,"Totalmente en Línea",null,null,0]
["IDENTIFICADOR","TRÁMITE","CANAL ATENCIÓN","PUNTUACIÓN",null,null,null,null,"No se completa totalmente en línea.",null,null,10]
["IEPI-003-02-03 ","Acción de Medida de Frontera de Derecho de Autor y Derechos Conexos","No se completa totalmente en línea.",{"$f":"IF(ISBLANK(C5),\"\",IF(C5=\"Totalmente en línea\",0,IF(C5=\"Inicia en línea\",6,10)))","v":10}]
["IEPI-003-02-05 ","Acción de Observancia Negativa por abuso del Derecho de Autor y Derechos Conexos","No se completa totalmente en línea.",{"$f":"IF(ISBLANK(C6),\"\",IF(C6=\"Totalmente en línea\",0,IF(C6=\"Inicia en línea\",6,10)))","v":10}]
["IEPI-003-02-04 ","Acción de Observancia Negativa por utilización lícita de prestaciones de Derecho de Autor y Derechos Conexos","No se completa totalmente en línea.",10]
["IEPI-003-01-04 ","Acción de Observancia Negativa por utilización lícita de prestaciones de Propiedad Industrial","No se completa totalmente en línea.",10]
["IEPI-007-01-10 ","Actos modificatorios al registro de patentes de invención, de modelos de utilidad y diseños industriales.","No se completa totalmente en línea.",10]
["IEPI-010-01-06 ","Aprobación de Reforma de estatutos de una Sociedad de Gestión Colectiva","No se completa totalmente en línea.",10]
["IEPI-010-01-05","Autorización de las tarifas de las Sociedades de Gestión Colectiva.","No se completa totalmente en línea.",10]
["IEPI-010-01-02","Concesión de la Autorización de Funcionamiento de una Sociedad de Gestión Colectiva","No se completa totalmente en línea.",10]
["IEPI-010-01-04","Constitución y aprobación de estatutos de una Sociedad de Gestión Colectiva","No se completa totalmente en línea.",10]
["IEPI-008-02-05","Declaratoria de denominación de origen ecuatoriana para personas naturales o jurídicas nacionales","No se completa totalmente en línea.",10]
["IEPI-010-01-07","Mediación entre socios y las Sociedades de Gestión Colectiva","No se completa totalmente en línea.",10]
["IEPI-008-02-03","Reconocimiento de indicaciones geográficas Denominaciones de Origen e Indicaciones de Procedencia para personas naturales o jurídicas extranjeras","No se completa totalmente en línea.",10]
["IEPI-007-01-02","Renovación de autorización de uso de denominación de origen ecuatoriana","No se completa totalmente en línea.",10]
["IEPI-008-01-08 ","Resolución de Esquema de Trazado de Circuitos Integrados para personas naturales y jurídicas sean nacionales o extranjeras","No se completa totalmente en línea.",10]
["IEPI-003-01-05 ","Acción de Observancia Negativa por abuso del derecho de Propiedad Industrial","No se completa totalmente en línea.",10]
["IEPI-003-02-01","Diligencias Preparatorias de Derecho de Autor y Derechos Conexos","No se completa totalmente en línea.",10]
["IEPI-007-01-05 ","Resolución de concesión de licencias obligatorias sobre patentes de fármacos y de agroquímicos para personas naturales y jurídicas sean nacionales o extranjeras.","No se completa totalmente en línea.",10]
["IEPI-007-01-09 ","Actos modificatorios al registro de Obtenciones Vegetales","No se completa totalmente en línea.",10]
["IEPI-003-03-01","Acción de Tutela Administrativa Positiva de Derecho de Obtentor","No se completa totalmente en línea.",10]
["IEPI-003-01-01","Diligencias Preparatorias de Propiedad Industrial","No se completa totalmente en línea.",10]
["IEPI-008-03-03","Búsqueda de registro y solicitudes de Obtenciones Vegetales única para personas naturales o jurídicas sean nacionales o extranjeras","No se completa totalmente en línea.",10]
["IEPI-008-02-06","Autorización de uso y explotación de denominación de origen ecuatoriana para personas naturales o jurídicas ya sean nacionales o extranjeras","No se completa totalmente en línea.",10]
["IEPI-010-03-01","Calificación de auditores externos para el examen de auditoría externa de las Sociedades de Gestión Colectiva.","No se completa totalmente en línea.",10]
["IEPI-008-04-10 ","Registro de títulos de programas y noticieros radiales o televisados, de diarios, revistas y otras publicaciones periódicas para personas naturales o jurídicas sean nacionales o extranjeras","No se completa totalmente en línea.",10]
["IEPI-008-01-04","Certificación de trámites para personas naturales y jurídicas sean nacionales o extranjeras","No se completa totalmente en línea.",10]
["IEPI-011-02-01","Recurso de Revisión de Derechos Intelectuales","No se completa totalmente en línea.",10]
["IEPI-009-01-02","Acción de cancelación voluntaria de Derechos Intelectuales","No se completa totalmente en línea.",10]
["IEPI-010-01-01 ","Informe de las visitas de inspección y monitoreo a petición de parte","No se completa totalmente en línea.",10]
["IEPI-008-04-09 ","Copias certificadas de obras literarias, artísticas y musicales, audiovisuales, programas de ordenador, bases de datos, fonogramas, audiovisuales registradas para personas naturales o jurídicas ya sean nacionales o extranjeras","No se completa totalmente en línea.",10]
["IEPI-008-04-07","Inscripción de Contratos relacionados con la transferencia y autorizaciones de los derechos patrimoniales de autor y conexos para personas naturales o jurídicas ya sean nacionales o extranjeras","No se completa totalmente en línea.",10]
["IEPI-003-02-02","Acción de Tutela Administrativa Positiva de Derecho de Autor y Derechos Conexos","No se completa totalmente en línea.",10]
["IEPI-008-01-07 ","Resolución de Patentes de Modelo de Utilidad para personas naturales y jurídicas sean nacionales o extranjeras","No se completa totalmente en línea.",10]
["IEPI-003-01-03 ","Acción de Medida de Frontera de Propiedad Industrial","No se completa totalmente en línea.",10]
["IEPI-009-02-01","Acciones de nulidad de Derechos Intelectuales","No se completa totalmente en línea.",10]
["IEPI-008-04-08","Registro de Obras Audiovisuales único para personas naturales o jurídicas ya sean nacionales o extranjeras","No se completa totalmente en línea.",10]
["IEPI-008-04-02 ","Registro de Fonogramas único para personas naturales o jurídicas ya sean nacionales o extranjeras","No se completa totalmente en línea.",10]
["IEPI-008-05-01","Registro de Depósito Voluntario único de conocimientos tradicionales asociados o no a recursos genéticos para pueblos, comunidades, nacionalidades indígenas, pueblo afroecuatoriano y montubios del Ecuador.","No se completa totalmente en línea.",10]
["IEPI-008-01-03","Aceptación de oposición a un trámite de patente de invención, patente de modelo de utilidad, registro de diseños industriales o esquema de trazados de circuitos integrados, para personas naturales y jurídicas sean nacionales o extranjeras","No se completa totalmente en línea.",10]
["IEPI-008-03-01","Registro de Obtención Vegetal única para personas naturales o jurídicas sean nacionales o extranjeras","No se completa totalmente en línea.",10]
["IEPI-003-01-02 ","Acción de Tutela Administrativa Positiva de Derecho de Propiedad Industrial","Totalmente en Línea",0]
["IEPI-009-01-01 ","Acciones de Cancelación por falta de uso de Derechos Intlectuales","No se completa totalmente en línea.",10]
["IEPI-008-01-06 ","Resolución de diseños industriales para personas naturales y jurídicas sean nacionales o extranjeras","No se completa totalmente en línea.",10]
["IEPI-011-03-01","Recurso de Reposición de Derechos Intelectuales","No se completa totalmente en línea.",10]
["IEPI-008-02-09 ","Registro de Lemas Comerciales de Productos y Servicios único para personas naturales y jurídicas sean nacionales o extranjeras","No se completa totalmente en línea.",10]
["IEPI-008-01-09","Elaboración de búsquedas de patentes de invención, patentes de modelos de utilidad, diseños industriales y esquemas de trazado de circuitos integrados para personas naturales y jurídicas sean nacionales o extranjeras","No se completa totalmente en línea.",10]
["IEPI-010-01-03","Registro de documentos de las Sociedades de Gestión Colectiva","No se completa totalmente en línea.",10]
["IEPI-011-01-01","Recurso de Apelación de Derechos Intelectuales  ","No se completa totalmente en línea.",10]
["IEPI-008-04-01 ","Registro de Programa de Ordenador y Base de Datos único para personas naturales o jurídicas ya sean nacionales o extranjeras","No se completa totalmente en línea.",10]
["IEPI-008-01-05","Resolución de Patentes de Invención para personas naturales y jurídicas sean nacionales o extranjeras","Totalmente en Línea",0]
["IEPI-008-04-03","Registro de Obras Artísticas y Musicales único para personas naturales o jurídicas ya sean nacionales o extranjeras","No se completa totalmente en línea.",10]
["IEPI-008-04-05","Búsquedas de obras literarias, artísticas y musicales, audiovisuales, programas de ordenador, fonogramas y publicaciones periódicas registradas para personas naturales o jurídicas ya sean nacionales o extranjeras","No se completa totalmente en línea.",10]
["IEPI-008-04-04 ","Registro de Obras Literarias único para personas naturales o jurídicas ya sean nacionales o extranjeras","No se completa totalmente en línea.",10]
["IEPI-008-02-07 ","Resolución de Oposiciones a signos distintivos única para personas naturales y jurídicas ya sean nacionales o extranjeras","No se completa totalmente en línea.",10]
["IEPI-008-02-02 ","Registro de Nombres comerciales, de los rótulos o enseña y apariencias distintivas único para personas naturales y jurídicas sean nacionales o extranjeras","No se completa totalmente en línea.",10]
["IEPI-007-01-04 ","Modificaciones al registro de signos distintivos","Totalmente en Línea",0]
["IEPI-007-01-01 ","Renovación de signos distintivos, nombre comercial, lema comercial, apariencias distintivas","No se completa totalmente en línea.",10]
["IEPI-008-02-01","Registro de Marcas de Productos y Servicios único para personas naturales y jurídicas sean nacionales o extranjeras","No se completa totalmente en línea.",10]
["IEPI-008-02-08 ","Solicitud de Informe de búsqueda general de signos distintivos para personas naturales o jurídicas sean nacionales o extranjeras","Totalmente en Línea",0]

{"sheet":"RESUMEN","index":8,"n_rows":61,"n_cols":25,"rows_kept":61,"cut":false,"hidden":false,"merged":[[1,0,2,0],[1,1,2,1],[1,2,2,2],[1,3,2,3],[1,4,2,4],[1,9,1,10],[1,11,1,12],[1,13,2,13],[0,2,0,6],[0,7,0,12],[1,5,2,5],[1,6,2,6],[1,7,1,8]]}
[null,null,"BÁSICOS",null,null,null,null,"ADICIONALES"]
["ID trámite","Nombre del trámite","Demanda","Quejas","Costo para administración","Tiempo de respuesta","Canal de atención","Necesidades ciudadanas",null,"Susceptibilidad a corrupción",null,"Volumen de devoluciones",null,"PUNTAJE TOTAL"]
[null,null,null,null,null,null,null,"Criterio","Puntuación","Criterio","Puntuación","Criterio","Puntuación",null,null,null,null,null,null,null,"demanda",0,3,6,10]
["IEPI-003-02-03 ","Acción de Medida de Frontera de Derecho de Autor y Derechos Conexos",0,0,5,10,10,"NO",{"$f":"IF(H4=\"SI\",5,0)","v":0},"NO",{"$f":"IF(J4=\"SI\",10,0)","v":0},"NO",{"$f":"IF(L4=\"SI\",5,0)","v":0},{"$f":"SUM(C4:G4,I4,K4,M4)","v":25},null,null,null,null,null,null,"quejas",0,4,10]
["IEPI-003-02-05 ","Acción de Observancia Negativa por abuso del Derecho de Autor y Derechos Conexos",0,0,20,10,10,"NO",{"$f":"IF(H5=\"SI\",5,0)","v":0},"NO",{"$f":"IF(J5=\"SI\",10,0)","v":0},"NO",{"$f":"IF(L5=\"SI\",5,0)","v":0},{"$f":"SUM(C5:G5,I5,K5,M5)","v":40},null,null,null,null,null,null,"cpa",5,10,20]
["IEPI-003-02-04 ","Acción de Observancia Negativa por utilización lícita de prestaciones de Derecho de Autor y Derechos Conexos",0,0,20,10,10,"NO",0,"NO",0,"NO",0,40,null,null,null,null,null,null,"tr",0,30]
["IEPI-003-01-04 ","Acción de Observancia Negativa por utilización lícita de prestaciones de Propiedad Industrial",0,0,10,10,10,"NO",0,"NO",0,"NO",0,30,null,null,null,null,null,null,"ca",0,10]
["IEPI-007-01-10 ","Actos modificatorios al registro de patentes de invención, de modelos de utilidad y diseños industriales.",0,0,10,10,10,"NO",0,"NO",0,"NO",0,30,null,null,null,null,null,null,null,"SI","NO"]
["IEPI-010-01-06 ","Aprobación de Reforma de estatutos de una Sociedad de Gestión Colectiva",0,0,10,10,10,"NO",0,"NO",0,"NO",0,30]
["IEPI-010-01-05","Autorización de las tarifas de las Sociedades de Gestión Colectiva.",0,0,10,10,10,"NO",0,"NO",0,"NO",0,30]
["IEPI-010-01-02","Concesión de la Autorización de Funcionamiento de una Sociedad de Gestión Colectiva",0,0,10,10,10,"NO",0,"NO",0,"NO",0,30]
["IEPI-010-01-04","Constitución y aprobación de estatutos de una Sociedad de Gestión Colectiva",0,0,10,10,10,"NO",0,"NO",0,"NO",0,30]
["IEPI-008-02-05","Declaratoria de denominación de origen ecuatoriana para personas naturales o jurídicas nacionales",0,0,20,0,10,"NO",0,"NO",0,"NO",0,30]
["IEPI-010-01-07","Mediación entre socios y las Sociedades de Gestión Colectiva",0,0,5,10,10,"NO",0,"NO",0,"NO",0,25]
["IEPI-008-02-03","Reconocimiento de indicaciones geográficas Denominaciones de Origen e Indicaciones de Procedencia para personas naturales o jurídicas extranjeras",0,0,20,0,10,"NO",0,"NO",0,"NO",0,30]
["IEPI-007-01-02","Renovación de autorización de uso de denominación de origen ecuatoriana",0,0,10,10,10,"NO",0,"NO",0,"NO",0,30]
["IEPI-008-01-08 ","Resolución de Esquema de Trazado de Circuitos Integrados para personas naturales y jurídicas sean nacionales o extranjeras",0,0,20,0,10,"NO",0,"NO",0,"NO",0,30]
["IEPI-003-01-05 ","Acción de Observancia Negativa por abuso del derecho de Propiedad Industrial",3,0,10,10,10,"NO",0,"NO",0,"NO",0,33]
["IEPI-003-02-01","Diligencias Preparatorias de Derecho de Autor y Derechos Conexos",3,0,10,10,10,"NO",0,"NO",0,"NO",0,33]
["IEPI-007-01-05 ","Resolución de concesión de licencias obligatorias sobre patentes de fármacos y de agroquímicos para personas naturales y jurídicas sean nacionales o extranjeras.",3,0,10,10,10,"NO",0,"NO",0,"NO",0,33]
["IEPI-007-01-09 ","Actos modificatorios al registro de Obtenciones Vegetales",3,0,5,10,10,"NO",0,"NO",0,"NO",0,28]
["IEPI-003-03-01","Acción de Tutela Administrativa Positiva de Derecho de Obtentor",3,0,5,10,10,"NO",0,"NO",0,"NO",0,28]
["IEPI-003-01-01","Diligencias Preparatorias de Propiedad Industrial",3,0,10,10,10,"NO",0,"NO",0,"NO",0,33]
["IEPI-008-03-03","Búsqueda de registro y solicitudes de Obtenciones Vegetales única para personas naturales o jurídicas sean nacionales o extranjeras",3,0,5,10,10,"NO",0,"NO",0,"NO",0,28]
["IEPI-008-02-06","Autorización de uso y explotación de denominación de origen ecuatoriana para personas naturales o jurídicas ya sean nacionales o extranjeras",3,0,20,10,10,"NO",0,"NO",0,"NO",0,43]
["IEPI-010-03-01","Calificación de auditores externos para el examen de auditoría externa de las Sociedades de Gestión Colectiva.",3,0,10,10,10,"NO",0,"NO",0,"NO",0,33]
["IEPI-008-04-10 ","Registro de títulos de programas y noticieros radiales o televisados, de diarios, revistas y otras publicaciones periódicas para personas naturales o jurídicas sean nacionales o extranjeras",3,0,5,10,10,"NO",0,"NO",0,"NO",0,28]
["IEPI-008-01-04","Certificación de trámites para personas naturales y jurídicas sean nacionales o extranjeras",3,0,5,10,10,"NO",0,"NO",0,"NO",0,28]
["IEPI-011-02-01","Recurso de Revisión de Derechos Intelectuales",3,10,20,0,10,"NO",0,"NO",0,"NO",0,43]
["IEPI-009-01-02","Acción de cancelación voluntaria de Derechos Intelectuales",3,0,10,10,10,"NO",0,"NO",0,"NO",0,33]
["IEPI-010-01-01 ","Informe de las visitas de inspección y monitoreo a petición de parte",3,0,10,10,10,"NO",0,"NO",0,"NO",0,33]
["IEPI-008-04-09 ","Copias certificadas de obras literarias, artísticas y musicales, audiovisuales, programas de ordenador, bases de datos, fonogramas, audiovisuales registradas para personas naturales o jurídicas ya sean nacionales o extranjeras",6,0,5,10,10,"NO",0,"NO",0,"NO",0,31]
["IEPI-008-04-07","Inscripción de Contratos relacionados con la transferencia y autorizaciones de los derechos patrimoniales de autor y conexos para personas naturales o jurídicas ya sean nacionales o extranjeras",6,10,5,10,10,"NO",0,"NO",0,"NO",0,41]
["IEPI-003-02-02","Acción de Tutela Administrativa Positiva de Derecho de Autor y Derechos Conexos",6,0,20,10,10,"NO",0,"NO",0,"NO",0,46]
["IEPI-008-01-07 ","Resolución de Patentes de Modelo de Utilidad para personas naturales y jurídicas sean nacionales o extranjeras",6,0,20,0,10,"NO",0,"NO",0,"NO",0,36]
["IEPI-003-01-03 ","Acción de Medida de Frontera de Propiedad Industrial",6,0,5,10,10,"NO",0,"NO",0,"NO",0,31]
["IEPI-009-02-01","Acciones de nulidad de Derechos Intelectuales",6,0,20,10,10,"NO",0,"NO",0,"NO",0,46]
["IEPI-008-04-08","Registro de Obras Audiovisuales único para personas naturales o jurídicas ya sean nacionales o extranjeras",6,0,5,10,10,"NO",0,"NO",0,"NO",0,31]
["IEPI-008-04-02 ","Registro de Fonogramas único para personas naturales o jurídicas ya sean nacionales o extranjeras",6,0,5,10,10,"NO",0,"NO",0,"NO",0,31]
["IEPI-008-05-01","Registro de Depósito Voluntario único de conocimientos tradicionales asociados o no a recursos genéticos para pueblos, comunidades, nacionalidades indígenas, pueblo afroecuatoriano y montubios del Ecuador.",6,0,5,10,10,"NO",0,"NO",0,"NO",0,31]
["IEPI-008-01-03","Aceptación de oposición a un trámite de patente de invención, patente de modelo de utilidad, registro de diseños industriales o esquema de trazados de circuitos integrados, para personas naturales y jurídicas sean nacionales o extranjeras",6,0,10,10,10,"NO",0,"NO",0,"NO",0,36]
["IEPI-008-03-01","Registro de Obtención Vegetal única para personas naturales o jurídicas sean nacionales o extranjeras",6,0,20,10,10,"NO",0,"NO",0,"NO",0,46]
["IEPI-003-01-02 ","Acción de Tutela Administrativa Positiva de Derecho de Propiedad Industrial",6,0,10,10,0,"NO",0,"NO",0,"NO",0,26]
["IEPI-009-01-01 ","Acciones de Cancelación por falta de uso de Derechos Intlectuales",6,0,10,10,10,"NO",0,"NO",0,"NO",0,36]
["IEPI-008-01-06 ","Resolución de diseños industriales para personas naturales y jurídicas sean nacionales o extranjeras",6,0,20,0,10,"NO",0,"NO",0,"NO",0,36]
["IEPI-011-03-01","Recurso de Reposición de Derechos Intelectuales",10,0,10,0,10,"NO",0,"NO",0,"NO",0,30]
["IEPI-008-02-09 ","Registro de Lemas Comerciales de Productos y Servicios único para personas naturales y jurídicas sean nacionales o extranjeras",10,0,20,0,10,"NO",0,"NO",0,"NO",0,40]
["IEPI-008-01-09","Elaboración de búsquedas de patentes de invención, patentes de modelos de utilidad, diseños industriales y esquemas de trazado de circuitos integrados para personas naturales y jurídicas sean nacionales o extranjeras",10,0,5,10,10,"NO",0,"NO",0,"NO",0,35]
["IEPI-010-01-03","Registro de documentos de las Sociedades de Gestión Colectiva",10,0,5,10,10,"NO",0,"NO",0,"NO",0,35]
["IEPI-011-01-01","Recurso de Apelación de Derechos Intelectuales  ",10,0,10,0,10,"NO",0,"NO",0,"NO",0,30]
["IEPI-008-04-01 ","Registro de Programa de Ordenador y Base de Datos único para personas naturales o jurídicas ya sean nacionales o extranjeras",10,0,5,10,10,"NO",0,"NO",0,"NO",0,35]
["IEPI-008-01-05","Resolución de Patentes de Invención para personas naturales y jurídicas sean nacionales o extranjeras",10,0,20,0,0,"NO",0,"NO",0,"NO",0,30]
["IEPI-008-04-03","Registro de Obras Artísticas y Musicales único para personas naturales o jurídicas ya sean nacionales o extranjeras",10,0,5,10,10,"NO",0,"NO",0,"NO",0,35]
["IEPI-008-04-05","Búsquedas de obras literarias, artísticas y musicales, audiovisuales, programas de ordenador, fonogramas y publicaciones periódicas registradas para personas naturales o jurídicas ya sean nacionales o extranjeras",10,4,5,10,10,"NO",0,"NO",0,"NO",0,39]
["IEPI-008-04-04 ","Registro de Obras Literarias único para personas naturales o jurídicas ya sean nacionales o extranjeras",10,0,5,10,10,"NO",0,"NO",0,"NO",0,35]
["IEPI-008-02-07 ","Resolución de Oposiciones a signos distintivos única para personas naturales y jurídicas ya sean nacionales o extranjeras",10,0,10,0,10,"NO",0,"NO",0,"NO",0,30]
["IEPI-008-02-02 ","Registro de Nombres comerciales, de los rótulos o enseña y apariencias distintivas único para personas naturales y jurídicas sean nacionales o extranjeras",10,0,20,0,10,"NO",0,"NO",0,"NO",0,40]
["IEPI-007-01-04 ","Modificaciones al registro de signos distintivos",10,0,10,0,0,"NO",0,"NO",0,"NO",0,20]
["IEPI-007-01-01 ","Renovación de signos distintivos, nombre comercial, lema comercial, apariencias distintivas",10,0,10,10,10,"NO",0,"NO",0,"NO",0,40]
["IEPI-008-02-01","Registro de Marcas de Productos y Servicios único para personas naturales y jurídicas sean nacionales o extranjeras",10,4,20,0,10,"NO",0,"NO",0,"NO",0,44]
["IEPI-008-02-08 ","Solicitud de Informe de búsqueda general de signos distintivos para personas naturales o jurídicas sean nacionales o extranjeras",10,4,5,10,0,"NO",0,"NO",0,"NO",0,29]